bitfinex/quotes_SOLUSD_20220227
["timestamp","ask_amount","ask_price","bid_price","bid_amount"]
[1645965816845,110.2,91.749,91.65,2.51340372]
[1645965817046,4.362,91.748,91.65,2.51340372]
[1645965817545,110.2,91.747,91.65,2.51340372]
[1645965817745,4.362,91.746,91.644,2.77798844]
[1645965817946,110.2,91.745,91.644,2.77798844]
[1645965818146,4.362,91.744,91.644,2.77798844]
[1645965818345,110.2,91.743,91.644,2.77798844]
[1645965818546,4.362,91.742,91.644,2.77798844]
[1645965818950,110.2,91.741,91.644,2.77798844]
[1645965819145,4.362,91.74,91.644,2.77798844]
[1645965819546,110.2,91.739,91.644,2.77798844]
[1645965819746,110.2,91.737,91.644,2.77798844]
[1645965819947,110.2,91.735,91.622,2.45440889]
[1645965820147,30.60881102,91.739,91.601,26.05773246]
[1645965820148,110.2,91.733,91.601,26.05773246]
[1645965820448,1.50247305,91.73,91.603,3.10039712]
[1645965820654,4.363,91.729,91.603,3.10039712]
[1645965821048,110.2,91.727,91.603,3.10039712]
[1645965821248,110.2,91.725,91.603,3.10039712]
[1645965821451,4.363,91.724,91.603,3.10039712]
[1645965821849,2.74678921,91.723,91.603,3.10039712]
[1645965822049,4.363,91.722,91.603,3.10039712]
[1645965822449,2.74678921,91.721,91.603,3.10039712]
[1645965822650,4.363,91.72,91.603,3.10039712]
[1645965823051,2.74678921,91.719,91.603,3.10039712]
[1645965823251,2.89298436,91.717,91.603,3.10039712]
[1645965823553,4.363,91.716,91.603,3.10039712]
[1645965823852,110.2,91.715,91.603,3.10039712]
[1645965824053,110.2,91.713,91.603,3.10039712]
[1645965824350,4.364,91.712,91.603,3.10039712]
[1645965824552,110.2,91.711,91.603,3.10039712]
[1645965824751,110.2,91.709,91.603,3.10039712]
[1645965824950,4.364,91.708,91.603,3.10039712]
[1645965825351,110.2,91.706,91.603,3.10039712]
[1645965825751,138.06202181,91.706,91.603,3.10039712]
[1645965825953,4.364,91.705,91.604,2.49983234]
[1645965826353,117.11380273,91.703,91.604,2.49983234]
[1645965826574,110.2,91.701,91.604,2.49983234]
[1645965827155,4.364,91.7,91.604,2.49983234]
[1645965827356,110.2,91.699,91.604,2.49983234]
[1645965827657,4.364,91.698,91.604,2.49983234]
[1645965827958,22.6542,91.698,91.604,2.49983234]
[1645965829456,110.2,91.697,91.604,2.49983234]
[1645965830458,4.364,91.696,91.604,2.49983234]
[1645965832759,110.2,91.695,91.604,2.49983234]
[1645965833466,4.364,91.694,91.604,2.49983234]
[1645965834987,114.564,91.694,91.604,2.49983234]
[1645965835187,22.6542,91.698,91.604,2.49983234]
[1645965835389,22.6542,91.698,91.605,2.74678921]
[1645965837189,110.2,91.697,91.605,2.74678921]
[1645965837589,22.6542,91.698,91.605,2.74678921]
[1645965838490,110.2,91.697,91.605,2.74678921]
[1645965840790,2.74678921,91.696,91.604,2.49983234]
[1645965841190,110.2,91.694,91.604,2.49983234]
[1645965841590,2.74678921,91.693,91.604,2.49983234]
[1645965842291,110.2,91.692,91.604,2.49983234]
[1645965842492,4.364,91.691,91.604,2.49983234]
[1645965842694,2.89298436,91.689,91.604,2.49983234]
[1645965842892,110.2,91.679,91.604,2.49983234]
[1645965843292,110.2,91.677,91.604,2.49983234]
[1645965846198,138.06202181,91.677,91.604,2.49983234]
[1645965846598,2.74678921,91.676,91.604,2.49983234]
[1645965847403,110.2,91.674,91.604,2.49983234]
[1645965847801,2.74678921,91.673,91.604,2.49983234]
[1645965849204,110.2,91.674,91.604,2.49983234]
[1645965850704,110.2,91.674,91.596,35.75143701]
[1645965850705,110.2,91.672,91.576,2.90985529]
[1645965850906,110.2,91.67,91.544,24.7319]
[1645965851204,1.85320796,91.666,91.545,2.65885624]
[1645965851603,110.2,91.664,91.546,45.18810773]
[1645965851903,110.2,91.662,91.547,2.6146325]
[1645965852105,113.09298436,91.66,91.547,2.6146325]
[1645965852304,5.83766508,91.659,91.547,2.6146325]
[1645965852606,1.69457714,91.657,91.547,2.6146325]
[1645965852805,4.366,91.656,91.547,2.6146325]
[1645965853004,175.19566991,91.658,91.547,2.6146325]
[1645965853204,2.74678921,91.655,91.547,8.6746325]
[1645965853404,4.366,91.654,91.547,8.6746325]
[1645965853803,2.74678921,91.653,91.547,8.6746325]
[1645965854004,4.366,91.652,91.547,8.6746325]
[1645965854205,110.2,91.65,91.547,8.6746325]
[1645965854405,114.566,91.65,91.547,2.6146325]
[1645965854605,14.58880831,91.649,91.547,2.6146325]
[1645965854805,114.566,91.648,91.547,2.6146325]
[1645965855005,158.67995547,91.648,91.547,2.6146325]
[1645965855209,14.58880831,91.647,91.547,2.6146325]
[1645965855409,110.2,91.644,91.547,2.6146325]
[1645965855608,4.367,91.643,91.547,2.6146325]
[1645965855907,110.2,91.642,91.547,2.6146325]
[1645965856110,16.3892,91.63,91.547,2.6146325]
[1645965856909,24.3068,91.629,91.547,2.6146325]
[1645965858311,27.0310438,91.656,91.548,0.25]
[1645965858512,4.367,91.66,91.548,0.25]
[1645965858711,2.74678921,91.662,91.548,6.25]
[1645965858912,2.74678921,91.662,91.549,110.2]
[1645965859117,2.74678921,91.662,91.551,110.2]
[1645965859412,2.74678921,91.662,91.552,8.76702611]
[1645965860514,2.74678921,91.662,91.57,16.3803]
[1645965860714,2.74678921,91.662,91.572,44.17351541]
[1645965860913,2.74678921,91.662,91.573,2.28821318]
[1645965863217,2.74678921,91.662,91.573,18.80461318]
[1645965863416,2.74678921,91.662,91.574,2.6626158]
[1645965868739,4.365,91.661,91.574,2.6626158]
[1645965868940,2.20732095,91.66,91.574,2.6626158]
[1645965869240,4.95411016,91.66,91.574,2.6626158]
[1645965869440,2.74678921,91.659,91.574,2.6626158]
[1645965869642,112.94678921,91.659,91.574,2.6626158]
[1645965869840,110.2,91.657,91.574,2.6626158]
[1645965870442,112.94678921,91.657,91.574,2.6626158]
[1645965875647,139.58696634,91.657,91.574,2.6626158]
[1645965876748,4.366,91.656,91.574,2.6626158]
[1645965877147,110.2,91.654,91.574,2.6626158]
[1645965877349,4.366,91.653,91.574,2.6626158]
[1645965877547,110.2,91.652,91.574,2.6626158]
[1645965877749,4.366,91.651,91.574,2.6626158]
[1645965877948,112.94678921,91.652,91.574,2.6626158]
[1645965878147,2.74678921,91.651,91.574,2.6626158]
[1645965879750,23.957,91.658,91.574,2.6626158]
[1645965883553,2.74678921,91.664,91.574,2.6626158]
[1645965883759,47.3455,91.713,91.577,2.84483526]
[1645965883957,47.3455,91.713,91.58,2.73218752]
[1645965884159,47.3455,91.713,91.583,2.5328128]
[1645965884356,47.3455,91.713,91.587,110.2]
[1645965884557,47.3455,91.713,91.59,2.5332073]
[1645965884755,47.3455,91.713,91.588,6.25]
[1645965884756,47.3455,91.713,91.593,2.91158306]
[1645965884955,47.3455,91.713,91.596,2.29133961]
[1645965885155,47.3455,91.713,91.597,6.25]
[1645965885356,47.3455,91.713,91.597,71.048012]
[1645965885556,47.3455,91.713,91.631,37.13028051]
[1645965885759,47.3455,91.713,91.633,2.81855632]
[1645965885957,47.3455,91.713,91.634,6.0]
[1645965887158,110.2,91.712,91.634,6.0]
[1645965887358,47.3455,91.713,91.634,6.0]
[1645965890565,110.2,91.712,91.634,6.0]
[1645965890765,47.3455,91.713,91.634,6.0]
[1645965890966,110.2,91.712,91.634,6.0]
[1645965891368,47.3455,91.713,91.634,6.0]
[1645965892771,47.3455,91.713,91.633,2.81855632]
[1645965893371,110.2,91.712,91.633,2.81855632]
[1645965893571,47.3455,91.713,91.633,2.81855632]
[1645965895773,110.2,91.712,91.633,2.81855632]
[1645965895974,47.3455,91.713,91.633,2.81855632]
[1645965897074,110.2,91.712,91.633,2.81855632]
[1645965899573,4.363,91.711,91.612,2.66802222]
[1645965899773,4.363,91.711,91.613,28.7515]
[1645965899974,4.363,91.711,91.614,2.28407424]
[1645965900173,4.363,91.711,91.615,6.0]
[1645965900381,110.2,91.712,91.616,35.81921918]
[1645965900575,110.2,91.712,91.617,2.64258769]
[1645965900774,4.363,91.711,91.617,2.64258769]
[1645965900975,110.2,91.712,91.617,2.64258769]
[1645965901176,4.363,91.711,91.617,2.64258769]
[1645965901374,110.2,91.712,91.617,2.64258769]
[1645965901775,4.363,91.711,91.617,2.64258769]
[1645965901977,110.2,91.712,91.617,2.64258769]
[1645965902474,4.363,91.711,91.617,2.64258769]
[1645965903077,110.2,91.712,91.617,2.64258769]
[1645965905085,47.3455,91.713,91.617,2.64258769]
[1645965905286,47.3455,91.713,91.618,2.99678921]
[1645965905485,47.3455,91.713,91.619,6.0]
[1645965905685,47.3455,91.713,91.62,0.25]
[1645965905982,47.3455,91.713,91.62,2.99678921]
[1645965906184,47.3455,91.713,91.621,6.0]
[1645965906383,47.3455,91.713,91.622,0.25]
[1645965906584,110.2,91.712,91.622,0.25]
[1645965906784,110.2,91.712,91.622,2.99678921]
[1645965907585,110.2,91.712,91.621,2.54368314]
[1645965907786,114.563,91.712,91.621,2.54368314]
[1645965907987,112.94678921,91.712,91.621,2.54368314]
[1645965908186,4.363,91.711,91.621,2.54368314]
[1645965908787,110.2,91.712,91.621,2.54368314]
[1645965910089,4.363,91.711,91.621,2.54368314]
[1645965910589,2.74678921,91.71,91.621,2.54368314]
[1645965910889,0.52557606,91.708,91.621,2.54368314]
[1645965911089,4.363,91.707,91.621,2.54368314]
[1645965911393,110.2,91.706,91.621,2.54368314]
[1645965911588,4.363,91.705,91.621,2.54368314]
[1645965911789,2.74678921,91.705,91.621,2.54368314]
[1645965912093,7.10978921,91.704,91.621,2.54368314]
[1645965912289,110.2,91.703,91.621,2.54368314]
[1645965912490,110.2,91.701,91.621,2.54368314]
[1645965912690,1.65249302,91.7,91.621,2.54368314]
[1645965912890,114.563,91.699,91.621,2.54368314]
[1645965913089,1.83634783,91.698,91.621,2.54368314]
[1645965913293,4.363,91.697,91.621,2.54368314]
[1645965913489,110.2,91.699,91.622,6.0]
[1645965913891,110.2,91.701,91.622,6.0]
[1645965915092,109.7,91.701,91.622,6.0]
[1645965915293,109.7,91.701,91.621,2.54368314]
[1645965916096,109.7,91.699,91.621,2.54368314]
[1645965916296,4.363,91.698,91.621,2.54368314]
[1645965916497,109.7,91.697,91.621,2.54368314]
[1645965916720,4.364,91.696,91.621,2.54368314]
[1645965917120,112.44678921,91.695,91.588,3.03516198]
[1645965917322,109.7,91.693,91.565,25.6944996]
[1645965917520,109.7,91.691,91.566,8.8123665]
[1645965917720,25.97992713,91.694,91.566,8.8123665]
[1645965917721,109.7,91.689,91.566,8.8123665]
[1645965917919,109.7,91.679,91.566,8.8123665]
[1645965918120,109.7,91.677,91.567,44.95518787]
[1645965918322,4.365,91.676,91.568,8.32598145]
[1645965918621,109.7,91.675,91.568,8.32598145]
[1645965918919,4.365,91.674,91.568,2.32598145]
[1645965919120,109.7,91.673,91.568,2.32598145]
[1645965919319,4.365,91.672,91.568,2.32598145]
[1645965919519,109.7,91.671,91.568,2.32598145]
[1645965919720,4.365,91.67,91.568,2.32598145]
[1645965919923,109.7,91.669,91.568,2.32598145]
[1645965920122,4.365,91.668,91.568,2.32598145]
[1645965920420,109.7,91.667,91.568,2.32598145]
[1645965920623,109.7,91.665,91.568,2.32598145]
[1645965920821,4.366,91.664,91.568,2.32598145]
[1645965921021,109.7,91.663,91.568,2.32598145]
[1645965921221,4.366,91.662,91.568,2.32598145]
[1645965922931,134.28061728,91.661,91.568,2.32598145]
[1645965923127,4.366,91.66,91.568,2.32598145]
[1645965923327,109.7,91.659,91.568,2.32598145]
[1645965923527,4.366,91.658,91.568,2.32598145]
[1645965924427,109.7,91.659,91.568,2.32598145]
[1645965925729,4.366,91.658,91.568,2.32598145]
[1645965925928,112.44678921,91.659,91.568,2.32598145]
[1645965926128,109.7,91.659,91.568,2.32598145]
[1645965926830,2.74678921,91.658,91.568,2.32598145]
[1645965927936,24.61980459,91.657,91.568,2.32598145]
[1645965928130,114.066,91.656,91.568,2.32598145]
[1645965928732,109.7,91.654,91.568,2.32598145]
[1645965928929,4.366,91.653,91.568,2.32598145]
[1645965931434,109.7,91.654,91.568,2.32598145]
[1645965931636,126.2388,91.654,91.568,2.32598145]
[1645965932734,4.366,91.653,91.568,2.32598145]
[1645965933235,109.7,91.652,91.568,2.32598145]
[1645965933436,1.92001168,91.65,91.568,2.32598145]
[1645965933837,4.366,91.649,91.568,2.32598145]
[1645965935838,109.7,91.648,91.568,2.32598145]
[1645965936039,4.366,91.647,91.568,2.32598145]
[1645965936438,109.7,91.648,91.568,2.32598145]
[1645965936837,109.7,91.647,91.568,2.32598145]
[1645965937947,1.92001168,91.65,91.568,2.32598145]
[1645965938141,109.7,91.653,91.568,2.32598145]
[1645965938543,22.603,91.655,91.568,2.32598145]
[1645965939342,110.2,91.654,91.568,2.32598145]
[1645965940744,4.366,91.653,91.568,2.32598145]
[1645965941743,110.2,91.652,91.568,2.32598145]
[1645965941943,4.366,91.651,91.568,2.32598145]
[1645965943444,110.2,91.65,91.568,2.32598145]
[1645965943847,4.366,91.649,91.568,2.32598145]
[1645965944445,110.2,91.65,91.568,2.32598145]
[1645965944647,110.2,91.653,91.568,2.32598145]
[1645965944845,4.366,91.652,91.568,2.32598145]
[1645965945046,110.2,91.653,91.568,2.32598145]
[1645965945545,4.366,91.652,91.568,2.32598145]
[1645965945945,4.366,91.653,91.568,2.32598145]
[1645965947355,126.6833,91.654,91.568,2.32598145]
[1645965948656,110.2,91.652,91.568,2.32598145]
[1645965948959,4.366,91.651,91.568,2.32598145]
[1645965949156,110.2,91.65,91.568,2.32598145]
[1645965949358,4.366,91.649,91.568,2.32598145]
[1645965949560,110.2,91.648,91.568,2.32598145]
[1645965949858,4.366,91.647,91.568,2.32598145]
[1645965950060,110.2,91.646,91.568,2.32598145]
[1645965950673,4.366,91.645,91.568,2.32598145]
[1645965951277,110.2,91.643,91.568,2.32598145]
[1645965953078,110.2,91.639,91.568,2.32598145]
[1645965957882,4.366,91.643,91.568,2.32598145]
[1645965957883,110.2,91.643,91.568,2.32598145]
[1645965958283,22.8141,91.644,91.568,2.32598145]
[1645965958684,110.2,91.643,91.568,2.32598145]
[1645965959986,22.8141,91.644,91.568,2.32598145]
[1645965960688,110.2,91.643,91.568,2.32598145]
[1645965961890,2.74678921,91.642,91.568,2.32598145]
[1645965962289,110.2,91.643,91.568,2.32598145]
[1645965962892,2.74678921,91.642,91.568,2.32598145]
[1645965963091,110.2,91.643,91.568,2.32598145]
[1645965963591,2.74678921,91.642,91.568,2.32598145]
[1645965965394,110.2,91.639,91.568,2.32598145]
[1645965965793,2.74678921,91.638,91.568,2.32598145]
[1645965966694,110.2,91.639,91.568,2.32598145]
[1645965966893,22.8141,91.644,91.568,2.32598145]
[1645965967096,4.366,91.666,91.568,2.32598145]
[1645965967097,2.74678921,91.662,91.569,2.99678921]
[1645965967394,23.4409,91.669,91.569,2.99678921]
[1645965967994,133.6409,91.669,91.569,2.99678921]
[1645965968195,133.6409,91.669,91.57,10.365]
[1645965968395,133.6409,91.669,91.571,0.25]
[1645965968597,23.4409,91.669,91.572,4.365]
[1645965968795,23.4409,91.669,91.573,0.25]
[1645965968996,23.4409,91.669,91.573,6.25]
[1645965969202,133.6409,91.669,91.573,6.25]
[1645965969401,133.6409,91.669,91.574,6.0]
[1645965969599,23.4409,91.669,91.575,0.25]
[1645965969797,23.4409,91.669,91.573,0.25]
[1645965970498,110.2,91.668,91.573,0.25]
[1645965970698,110.2,91.668,91.572,0.25]
[1645965970898,110.2,91.668,91.574,2.74678921]
[1645965971098,110.2,91.668,91.575,6.25]
[1645965971302,110.2,91.668,91.576,24.9864]
[1645965971502,110.2,91.668,91.577,2.82385701]
[1645965973604,110.2,91.668,91.577,2.57385701]
[1645965974205,119.91308203,91.668,91.577,2.57385701]
[1645965974605,110.2,91.668,91.577,2.57385701]
[1645965975105,16.3819,91.68,91.577,2.57385701]
[1645965975306,23.189,91.685,91.58,16.379]
[1645965975506,6.88240084,91.684,91.581,8.5212054]
[1645965975707,6.88240084,91.684,91.581,11.26799461]
[1645965975907,6.88240084,91.684,91.582,4.365]
[1645965976207,23.189,91.685,91.583,6.25]
[1645965976406,23.189,91.685,91.583,8.99678921]
[1645965976622,23.189,91.685,91.591,2.28590224]
[1645965976825,23.189,91.685,91.592,6.25]
[1645965977023,23.189,91.685,91.594,2.5812614]
[1645965977223,23.189,91.685,91.596,42.40496233]
[1645965977426,23.189,91.685,91.597,8.64363336]
[1645965978427,23.189,91.685,91.598,6.0]
[1645965978626,23.189,91.685,91.599,0.25]
[1645965978826,110.2,91.684,91.599,0.25]
[1645965979029,23.189,91.685,91.599,0.25]
[1645965979428,110.2,91.684,91.599,0.25]
[1645965979629,23.189,91.685,91.599,0.25]
[1645965979832,23.189,91.685,91.6,19.12198921]
[1645965980031,23.189,91.685,91.601,2.90754026]
[1645965980228,23.189,91.685,91.601,5.65432947]
[1645965982030,1.09017493,91.684,91.601,5.65432947]
[1645965982231,23.189,91.685,91.601,5.65432947]
[1645965982635,23.189,91.685,91.602,6.0]
[1645965982832,110.2,91.701,91.601,5.65432947]
[1645965983034,110.2,91.699,91.603,0.25]
[1645965983635,24.62894054,91.702,91.603,0.25]
[1645965983935,24.62894054,91.702,91.61,16.3736]
[1645965984140,24.62894054,91.702,91.611,33.7200551]
[1645965984337,24.1984,91.707,91.612,2.47689558]
[1645965984536,6.91762205,91.706,91.613,0.25]
[1645965984736,110.2,91.705,91.613,6.0]
[1645965985037,110.2,91.705,91.612,2.47689558]
[1645965985239,4.364,91.704,91.612,2.47689558]
[1645965985637,110.2,91.705,91.612,2.47689558]
[1645965986538,110.2,91.705,91.613,6.0]
[1645965987740,110.2,91.706,91.613,6.0]
[1645965989139,24.1984,91.707,91.613,6.0]
[1645965990541,16.3717,91.74,91.615,3.06419902]
[1645965990741,24.4438,91.739,91.618,2.95422621]
[1645965990939,24.4438,91.739,91.619,6.25]
[1645965991341,24.4438,91.739,91.621,2.65770952]
[1645965991538,24.4438,91.739,91.62,149.15836734]
[1645965991539,24.4438,91.739,91.625,110.2]
[1645965991740,24.4438,91.739,91.627,110.2]
[1645965992041,24.4438,91.739,91.628,9.03118545]
[1645965992241,24.4438,91.739,91.628,27.14717217]
[1645965992541,24.4438,91.739,91.629,20.57670761]
[1645965992739,8.00645618,91.738,91.63,8.72626132]
[1645965992942,8.00645618,91.738,91.63,51.41645023]
[1645965993141,24.4438,91.739,91.631,17.78487147]
[1645965993342,24.4438,91.739,91.632,8.55902928]
[1645965993544,24.4438,91.739,91.651,2.8602629]
[1645965993743,22.5905,91.749,91.653,3.02000689]
[1645965993944,132.7905,91.749,91.654,0.25]
[1645965994142,110.2,91.747,91.654,35.68579924]
[1645965994343,8.32527677,91.748,91.655,2.87708016]
[1645965994543,22.5905,91.749,91.656,0.25]
[1645965995246,22.5905,91.749,91.656,8.46]
[1645965996049,24.6121,91.757,91.661,2.42140636]
[1645965996347,24.6121,91.757,91.662,6.25]
[1645965996548,24.6121,91.757,91.662,8.99678921]
[1645965996748,24.6121,91.757,91.663,27.29848921]
[1645965996948,24.6121,91.757,91.664,9.19790755]
[1645965997550,24.6121,91.757,91.67,16.3629]
[1645965997749,24.6121,91.757,91.671,0.25]
[1645965997952,24.6121,91.757,91.671,3.34909429]
[1645965998149,24.6121,91.757,91.671,0.25]
[1645965998351,24.6121,91.757,91.671,8.66278]
[1645965998555,24.6121,91.757,91.672,2.74678921]
[1645965998751,24.6121,91.757,91.681,3.03381748]
[1645965998952,24.6121,91.757,91.682,0.25]
[1645965999151,24.6121,91.757,91.682,23.7229]
[1645965999353,24.6121,91.757,91.683,2.59562996]
[1645966002256,110.2,91.756,91.683,2.59562996]
[1645966002659,132.68931592,91.756,91.683,2.59562996]
[1645966002880,24.6121,91.757,91.683,2.59562996]
[1645966003063,24.6121,91.757,91.654,26.26158921]
[1645966003262,162.68931592,91.755,91.653,3.09744245]
[1645966003460,1.53517788,91.754,91.548,76.9335]
[1645966003659,114.563,91.753,91.603,2.99662899]
[1645966003863,5.0,91.752,91.547,112.2]
[1645966004062,5.0,91.742,91.604,32.9248852]
[1645966004360,1.36690352,91.739,91.604,32.9248852]
[1645966004560,110.2,91.729,91.604,35.39414604]
[1645966004761,110.2,91.727,91.604,32.9248852]
[1645966004960,5.0,91.722,91.604,32.9248852]
[1645966005164,4.363,91.721,91.574,2.6718742]
[1645966005359,184.1272,91.72,91.561,2.83737731]
[1645966005561,110.2,91.709,91.543,2.86677142]
[1645966005762,110.2,91.707,91.543,2.86677142]
[1645966005960,110.2,91.705,91.543,2.86677142]
[1645966006159,1.74444728,91.704,91.574,2.97096864]
[1645966006360,4.364,91.703,91.573,43.65168825]
[1645966006566,1.57334122,91.702,91.573,43.65168825]
[1645966006763,4.365,91.701,91.573,43.65168825]
[1645966006963,1.69566022,91.7,91.573,43.65168825]
[1645966007163,110.2,91.689,91.573,43.65168825]
[1645966007365,110.2,91.687,91.573,43.65168825]
[1645966007563,6.23737788,91.686,91.573,43.65168825]
[1645966007765,1.52037004,91.684,91.573,43.65168825]
[1645966007972,4.365,91.683,91.573,43.65168825]
[1645966008165,110.2,91.682,91.573,43.65168825]
[1645966008367,4.365,91.681,91.573,43.65168825]
[1645966008565,126.5889,91.68,91.573,43.65168825]
[1645966008764,1.44459012,91.677,91.573,43.65168825]
[1645966008966,4.365,91.676,91.574,2.75548801]
[1645966009169,49.80938921,91.676,91.574,2.75548801]
[1645966009565,110.2,91.675,91.574,2.75548801]
[1645966010165,110.2,91.673,91.574,2.75548801]
[1645966010386,4.365,91.672,91.574,2.75548801]
[1645966010766,9.68052736,91.672,91.574,2.75548801]
[1645966010967,5.31552736,91.672,91.575,0.25]
[1645966011165,47.0626,91.676,91.575,0.25]
[1645966011365,43.76988503,91.675,91.575,0.25]
[1645966011965,43.76988503,91.675,91.574,2.75548801]
[1645966012169,110.2,91.674,91.574,2.75548801]
[1645966012566,110.2,91.672,91.574,2.75548801]
[1645966012972,110.2,91.672,91.575,0.25]
[1645966013167,110.2,91.67,91.574,2.75548801]
[1645966013570,110.2,91.668,91.573,43.65168825]
[1645966013771,6.22052227,91.667,91.573,43.65168825]
[1645966013969,1.40384939,91.665,91.573,43.65168825]
[1645966014370,4.365,91.664,91.573,43.65168825]
[1645966014568,1.53612074,91.662,91.573,43.65168825]
[1645966014768,4.365,91.661,91.498,110.2]
[1645966014970,4.365,91.661,91.51,2.69226868]
[1645966015169,251.07024688,91.66,91.51,2.69226868]
[1645966015469,1.38309911,91.659,91.511,6.0]
[1645966015669,114.567,91.658,91.512,153.8261073]
[1645966015868,1.65248591,91.657,91.514,110.2]
[1645966016072,145.05802298,91.658,91.517,2.57953685]
[1645966016271,2.74678921,91.657,91.518,116.45]
[1645966016470,4.367,91.656,91.519,2.87638246]
[1645966016675,4.367,91.656,91.52,6.25]
[1645966016872,110.2,91.654,91.52,6.25]
[1645966017071,33.1370218,91.655,91.521,26.94478921]
[1645966017072,110.2,91.652,91.521,26.94478921]
[1645966017272,110.2,91.652,91.522,9.08929542]
[1645966017474,112.05811239,91.652,91.54,16.3859]
[1645966017672,1.36066461,91.649,91.542,41.91294497]
[1645966017893,4.367,91.648,91.543,2.99909448]
[1645966018092,2.74678921,91.651,91.543,2.99909448]
[1645966018493,2.74678921,91.651,91.544,2.74678921]
[1645966018697,2.74678921,91.651,91.545,0.25]
[1645966019093,2.74678921,91.651,91.546,2.74678921]
[1645966019293,2.74678921,91.651,91.547,0.25]
[1645966019493,2.74678921,91.651,91.55,16.3843]
[1645966019694,157.90628657,91.65,91.551,2.83068622]
[1645966019894,172.61479969,91.65,91.551,2.83068622]
[1645966020097,110.2,91.648,91.543,2.55935315]
[1645966020394,2.74678921,91.647,91.543,2.55935315]
[1645966020593,110.2,91.645,91.543,2.55935315]
[1645966020794,55.8164671,91.646,91.543,2.55935315]
[1645966020993,2.74678921,91.645,91.543,2.55935315]
[1645966021199,65.1615889,91.645,91.543,2.55935315]
[1645966021596,30.39023259,91.644,91.543,2.55935315]
[1645966021997,2.74678921,91.643,91.543,2.55935315]
[1645966022198,2.74678921,91.643,91.544,0.25]
[1645966022998,110.2,91.641,91.543,2.55935315]
[1645966023198,110.2,91.639,91.543,2.55935315]
[1645966023398,114.567,91.639,91.543,2.55935315]
[1645966023801,110.2,91.637,91.543,2.55935315]
[1645966024199,2.74678921,91.636,91.543,2.55935315]
[1645966024601,110.2,91.629,91.543,2.55935315]
[1645966025002,110.2,91.627,91.543,2.55935315]
[1645966025203,110.2,91.625,91.543,2.55935315]
[1645966025804,2.74678921,91.624,91.543,2.55935315]
[1645966026610,16.3935,91.62,91.543,2.55935315]
[1645966027011,2.74678921,91.619,91.543,2.55935315]
[1645966028009,112.94678921,91.619,91.543,2.55935315]
[1645966028410,2.74678921,91.618,91.543,2.55935315]
[1645966031615,2.74678921,91.618,91.51,2.78902684]
[1645966031618,1.3715599,91.616,91.51,2.78902684]
[1645966031817,4.368,91.615,91.51,2.78902684]
[1645966032014,1.58144811,91.613,91.51,2.78902684]
[1645966032214,4.368,91.612,91.51,2.78902684]
[1645966032415,1.61533874,91.61,91.511,38.22598896]
[1645966032615,4.368,91.609,91.512,2.57697848]
[1645966032815,110.2,91.608,91.512,2.57697848]
[1645966033017,110.2,91.606,91.512,2.57697848]
[1645966033216,110.2,91.604,91.512,2.57697848]
[1645966033419,1.60260342,91.603,91.512,2.57697848]
[1645966033617,110.2,91.602,91.512,2.57697848]
[1645966033818,110.2,91.589,91.511,38.22598896]
[1645966034018,1.67183135,91.586,91.474,2.79471876]
[1645966034318,1.67183135,91.586,91.419,2.69354546]
[1645966034319,4.37,91.585,91.419,2.69354546]
[1645966034517,110.2,91.584,91.428,2.74678921]
[1645966034715,110.2,91.582,91.429,6.0]
[1645966034915,110.2,91.58,91.43,41.06724286]
[1645966035115,6.23111026,91.581,91.43,41.06724286]
[1645966035116,110.2,91.578,91.431,8.8779004]
[1645966035316,110.2,91.569,91.431,8.8779004]
[1645966035516,111.60457148,91.567,91.431,2.8779004]
[1645966035717,110.2,91.565,91.431,2.8779004]
[1645966036017,1.39364918,91.564,91.431,2.8779004]
[1645966036217,1.63252917,91.562,91.431,2.8779004]
[1645966036418,110.2,91.559,91.431,2.8779004]